bitfinex-derivatives/quotes_ETHF0:USTF0_20260201
["timestamp","ask_amount","ask_price","bid_price","bid_amount"]
[1769975347020,1.74029267,2319.6,2317.7,2.70812627]
[1769975347215,5.07429267,2319.9,2317.9,2.48821552]
[1769975347416,5.07429267,2319.9,2318.1,2.3765297]
[1769975347922,1.74029267,2319.9,2318.3,2.3765297]
[1769975348619,1.74029267,2319.9,2318.0,9.2495297]
[1769975349018,1.74029267,2319.9,2318.1,2.3765297]
[1769975349625,1.70629114,2319.7,2318.1,2.3765297]
[1769975349922,1.70629114,2319.5,2317.8,2.3765297]
[1769975350317,1.70629114,2319.3,2317.8,2.3765297]
[1769975350518,1.70629114,2318.9,2317.7,0.00398075]
[1769975351523,1.70629114,2318.9,2317.7,2.38051045]
[1769975351724,1.69439092,2319.2,2317.7,2.38051045]
[1769975352519,8.75469833,2319.8,2317.7,2.38051045]
[1769975352520,1.69439092,2319.5,2317.7,2.59644045]
[1769975352822,1.69439092,2319.5,2317.9,2.3765297]
[1769975353022,1.69439092,2319.9,2317.9,2.3765297]
[1769975353222,1.69439092,2319.9,2318.2,2.3765297]
[1769975353615,1.91012092,2319.9,2318.2,2.3765297]
[1769975354418,1.69439092,2319.9,2318.2,2.3765297]
[1769975354616,0.0054757,2320.2,2318.2,2.3765297]
[1769975354815,0.0054757,2320.2,2318.7,2.3765297]
[1769975355024,0.0054757,2320.2,2318.9,2.3765297]
[1769975357620,1.65376712,2320.2,2318.9,2.3765297]
[1769975357830,1.64829142,2319.8,2318.2,2.3765297]
[1769975358125,1.64829142,2319.6,2318.2,2.3765297]
[1769975358325,1.64829142,2319.4,2318.2,2.3765297]
[1769975359230,1.86406142,2319.4,2318.2,2.3765297]
[1769975359531,1.63473484,2319.9,2318.2,2.3765297]
[1769975360130,1.85046484,2319.9,2318.2,2.3765297]
[1769975361630,1.63473484,2319.9,2318.2,2.3765297]
[1769975365729,1.63473484,2319.9,2318.4,2.3765297]
[1769975366130,1.57231221,2320.2,2318.4,2.3765297]
[1769975366334,0.0054757,2320.2,2318.6,2.3765297]
[1769975368030,0.0054757,2320.2,2318.9,2.3765297]
[1769975368230,0.0054757,2320.2,2318.9,5.4285297]
[1769975368431,0.0054757,2320.2,2319.0,2.3765297]
[1769975369434,0.0054757,2320.2,2319.2,2.3765297]
[1769975370727,0.0054757,2320.2,2318.9,5.61917038]
[1769975370728,0.0054757,2320.2,2318.1,3.85657216]
[1769975370925,0.21588,2318.3,2316.0,2.50127288]
[1769975371133,5.08560833,2318.0,2316.0,2.50127288]
[1769975371335,4.86969833,2317.9,2316.1,2.50127288]
[1769975371632,6.3039782,2316.5,2315.0,0.21618]
[1769975371836,5.03578819,2316.0,2315.0,0.22170305]
[1769975372034,0.00381855,2316.5,2315.8,24.10360969]
[1769975372230,0.00381855,2316.5,2315.1,43.56978819]
[1769975372435,0.00381855,2316.5,2315.7,24.10360969]
[1769975372929,0.00381855,2316.5,2315.0,0.22170305]
[1769975372930,0.00381855,2316.5,2316.0,24.10360969]
[1769975373136,0.00381855,2316.5,2315.6,24.10360969]
[1769975373531,0.00381855,2316.5,2315.9,24.10360969]
[1769975373933,0.00381855,2316.5,2316.1,24.10360969]
[1769975374135,0.00381855,2316.5,2316.0,24.10360969]
[1769975374335,0.00381855,2316.5,2316.1,67.67339788]
[1769975374527,0.00381855,2316.5,2315.9,67.67339788]
[1769975374935,0.00381855,2316.5,2316.0,24.10360969]
[1769975375431,0.00381855,2316.5,2316.1,67.67339788]
[1769975375636,0.00381855,2316.5,2315.9,24.10360969]
[1769975376140,0.00381855,2316.5,2316.0,67.67339788]
[1769975376341,2.39222802,2316.5,2315.8,43.56978819]
[1769975376534,2.39222802,2316.5,2315.3,26.48013939]
[1769975376739,2.39222802,2316.5,2315.4,43.56978819]
[1769975377442,2.39222802,2316.5,2315.5,26.38007359]
[1769975377838,2.39222802,2316.5,2315.6,24.10360969]
[1769975378038,0.00381855,2316.5,2315.8,24.10360969]
[1769975378442,0.00381855,2316.5,2315.9,24.10360969]
[1769975378844,0.00381855,2316.5,2316.0,43.56978819]
[1769975379143,0.00381855,2316.5,2315.8,43.56978819]
[1769975379840,2.33876389,2316.1,2315.0,0.00552305]
[1769975380243,2.33876389,2316.0,2315.0,0.00552305]
[1769975381439,37.64094116,2316.2,2315.3,24.10360969]
[1769975381744,2.33876389,2316.3,2315.4,24.10360969]
[1769975382044,0.00381855,2316.5,2315.6,24.10360969]
[1769975382243,0.00381855,2316.5,2315.6,3.227]
[1769975382444,0.00381855,2316.5,2315.8,24.10360969]
[1769975382642,0.00381855,2316.5,2315.6,3.227]
[1769975382944,0.00381855,2316.5,2315.7,24.10360969]
[1769975383145,0.00381855,2316.5,2315.6,3.227]
[1769975383444,0.00381855,2316.5,2315.8,24.10360969]
[1769975383845,0.00381855,2316.5,2315.9,24.10360969]
[1769975384043,2.34258244,2316.5,2315.6,27.33060969]
[1769975384847,2.34258244,2316.5,2315.6,3.227]
[1769975385546,2.34258244,2316.5,2315.6,27.33060969]
[1769975385936,2.43766879,2316.3,2315.6,27.33060969]
[1769975386344,2.43766879,2316.3,2316.2,15.06400047]
[1769975386544,2.43766879,2316.3,2316.2,14.03373554]
[1769975386747,7.27491461,2316.3,2315.3,0.88720338]
[1769975386943,4.83724582,2316.2,2315.3,0.88720338]
[1769975387144,4.83724582,2316.1,2315.3,0.88720338]
[1769975387342,2.43766879,2316.3,2315.3,0.88720338]
[1769975387544,37.64094116,2316.1,2315.3,0.88720338]
[1769975387747,4.83795685,2316.0,2315.2,3.249]
[1769975387947,4.83795685,2315.9,2315.2,27.35260969]
[1769975388244,37.64094116,2316.2,2315.2,29.68940505]
[1769975388547,37.64094116,2316.2,2315.2,5.58579536]
[1769975388548,4.83613369,2316.1,2315.2,5.58579536]
[1769975388741,4.83613369,2316.0,2315.2,5.58579536]
[1769975388943,4.83613369,2315.9,2315.2,5.58579536]
[1769975389146,7.27380248,2315.8,2315.0,0.00552305]
[1769975389346,40.07860995,2316.2,2315.0,2.34231841]
[1769975389648,4.82107814,2316.1,2315.1,2.33679536]
[1769975389848,4.82107814,2316.0,2315.1,2.33679536]
[1769975390049,4.82107814,2315.9,2315.2,26.44040505]
[1769975390253,40.07860995,2316.2,2315.2,2.33679536]
[1769975390447,4.82199503,2316.1,2315.2,26.44040505]
[1769975390646,4.82199503,2316.0,2315.0,0.00552305]
[1769975390845,2.43766879,2316.0,2315.0,24.10913274]
[1769975391045,2.43766879,2316.0,2315.1,26.44040505]
[1769975391252,4.82320722,2315.9,2315.0,0.00552305]
[1769975391554,4.82320722,2315.8,2315.0,26.4459281]
[1769975391854,2.43766879,2316.1,2315.0,2.34231841]
[1769975392051,4.82275456,2316.0,2315.1,26.44040505]
[1769975392352,7.26042335,2315.9,2315.0,2.34231841]
[1769975392552,4.82275456,2315.8,2315.0,26.4459281]
[1769975392751,40.07860995,2316.2,2315.0,26.4459281]
[1769975392951,4.81611862,2316.1,2315.0,2.34231841]
[1769975393251,4.81611862,2316.0,2315.0,2.34231841]
[1769975393452,4.81611862,2315.9,2315.0,26.4459281]
[1769975393654,4.81611862,2315.8,2315.0,26.4459281]
[1769975393852,37.64094116,2316.1,2315.0,26.4459281]
[1769975394154,4.81783428,2316.0,2315.0,26.4459281]
[1769975394450,37.64094116,2316.1,2315.0,26.4459281]
[1769975394451,4.81783428,2315.9,2315.0,26.4459281]
[1769975394652,4.81783428,2315.8,2315.0,26.4459281]
[1769975394846,2.43766879,2316.0,2315.0,26.4459281]
[1769975394847,4.81783428,2315.7,2315.0,26.4459281]
[1769975395048,2.43766879,2316.0,2315.1,24.10360969]
[1769975395354,40.07860995,2316.0,2315.1,24.10360969]
[1769975395555,4.82355561,2315.9,2315.2,24.10360969]
[1769975395756,4.82355561,2315.8,2315.1,26.44040505]
[1769975396055,4.82355561,2315.7,2315.3,26.44040505]
[1769975396256,37.64094116,2316.0,2315.6,24.10360969]
[1769975396553,4.82926895,2315.9,2315.3,2.33679536]
[1769975396748,4.82926895,2315.8,2315.4,24.10360969]
[1769975396950,37.64094116,2316.0,2315.4,24.10360969]
[1769975396951,4.82926895,2315.7,2315.4,24.10360969]
[1769975397153,4.82926895,2315.6,2315.5,24.10360969]
[1769975397354,37.64094116,2315.8,2315.5,24.10360969]
[1769975397855,37.64094116,2315.8,2315.6,24.10360969]
[1769975398058,7.41519224,2316.3,2315.7,24.10360969]
[1769975398252,0.00381855,2316.5,2315.0,0.00552305]
[1769975398253,7.41519224,2315.9,2315.0,0.00552305]
[1769975398553,4.97752345,2315.9,2315.0,0.8543335]
[1769975398854,7.41519224,2316.1,2315.4,24.10360969]
[1769975399055,2.43766879,2315.9,2315.3,3.301]
[1769975399254,4.97752345,2315.8,2315.3,3.301]
[1769975399455,2.43766879,2315.7,2315.5,24.10360969]
[1769975399754,2.43766879,2315.7,2315.4,24.10360969]
[1769975400149,2.43766879,2315.7,2315.5,24.10360969]
[1769975400350,2.43766879,2315.5,2315.4,24.10360969]
[1769975400553,6.3039782,2315.7,2315.0,0.00552305]
[1769975400747,5.05596892,2315.5,2315.0,2.34231841]
[1769975400958,5.05596892,2315.5,2315.2,24.10360969]
[1769975401258,5.05596892,2315.5,2315.3,24.10360969]
[1769975401452,6.32379478,2316.4,2315.4,2.55293536]
[1769975401753,7.60239589,2317.6,2316.2,5.24844312]
[1769975401958,3.393,2317.8,2316.3,2.534]
[1769975402652,3.39670474,2317.8,2316.3,2.534]
[1769975402854,0.00370474,2317.8,2316.4,2.33679536]
[1769975403156,0.00370474,2317.8,2316.6,5.24844312]
[1769975403358,0.00370474,2317.8,2316.7,5.24844312]
[1769975403657,4.96860138,2317.8,2316.7,5.25276363]
[1769975403860,4.96860138,2317.8,2316.9,5.24844312]
[1769975404153,4.96860138,2317.8,2317.0,5.24844312]
[1769975404357,4.96860138,2317.8,2316.9,5.24844312]
[1769975404857,4.96860138,2317.8,2317.0,5.24844312]
[1769975405059,2.44137353,2317.8,2317.0,5.24844312]
[1769975405261,2.44137353,2317.8,2317.2,5.24844312]
[1769975405459,2.44137353,2317.8,2316.9,3.315]
[1769975405657,2.44137353,2317.8,2317.2,5.24844312]
[1769975405658,0.00370474,2317.8,2317.2,5.24844312]
[1769975406155,2.44137353,2317.8,2316.9,3.315]
[1769975406555,2.44137353,2317.8,2316.9,8.56344312]
[1769975406958,2.43766879,2317.5,2316.7,0.00432051]
[1769975408264,2.43766879,2317.5,2316.9,5.24844312]
[1769975408761,2.43766879,2317.5,2316.7,0.00432051]
[1769975408955,2.37454493,2317.8,2317.0,5.24844312]
[1769975409156,2.37454493,2317.8,2317.3,5.24844312]
[1769975409356,0.00370474,2317.8,2317.3,5.24844312]
[1769975409553,0.00370474,2317.8,2316.7,2.29275883]
[1769975409554,2.37084019,2317.5,2315.9,2.28843832]
[1769975409754,2.37454493,2317.8,2316.1,2.28843832]
[1769975410061,2.37454493,2317.8,2316.3,2.50449832]
[1769975410062,0.00370474,2317.8,2316.3,2.50449832]
[1769975410760,0.00370474,2317.8,2316.3,2.50964582]
[1769975410956,0.00370474,2317.8,2316.4,0.21605]
[1769975411163,0.00370474,2317.8,2316.8,2.28843832]
[1769975412264,2.37084019,2318.6,2317.1,2.28843832]
[1769975412462,2.37084019,2318.6,2317.3,2.28843832]
[1769975412862,4.89806804,2318.9,2317.3,2.28843832]
[1769975413262,0.00556721,2318.9,2317.3,2.28843832]
[1769975413661,0.00556721,2318.9,2317.3,2.50440832]
[1769975414161,0.00556721,2318.9,2317.7,2.28843832]
[1769975414962,0.00556721,2318.9,2317.7,2.50436832]
[1769975415171,2.37084019,2319.8,2317.9,2.28843832]
[1769975415461,2.37084019,2319.8,2318.1,2.28843832]
[1769975415665,2.37084019,2319.8,2318.3,2.28843832]
[1769975416065,2.37084019,2320.2,2318.3,2.28843832]
[1769975416262,2.52722785,2320.5,2318.3,2.2924284]
[1769975416464,0.3367475,2320.7,2318.3,2.2924284]
[1769975416767,0.21571,2320.1,2318.3,2.2924284]
[1769975417060,9.16158382,2321.1,2318.3,2.2924284]
[1769975417265,0.00432064,2321.1,2318.5,2.43802857]
[1769975417665,0.21564,2320.9,2318.5,2.43802857]
[1769975418164,0.12024958,2320.8,2318.6,0.21585]
[1769975418360,0.12024958,2320.8,2318.7,2.66074546]
[1769975419062,0.12024958,2320.8,2319.0,2.44491546]
[1769975419268,0.12024958,2320.8,2319.2,2.44491546]
[1769975419968,0.09400489,2320.7,2319.2,2.44491546]
[1769975423467,0.09400489,2320.7,2319.3,2.50504025]
[1769975425370,0.00432064,2321.1,2319.3,2.50504025]
[1769975425571,0.00432064,2321.1,2319.4,2.50504025]
[1769975425870,0.00432064,2321.1,2319.4,2.72081025]
[1769975426870,0.00432064,2321.1,2319.8,2.50504025]
[1769975427372,0.20992064,2321.3,2319.8,2.50504025]
[1769975428468,0.21390043,2321.3,2319.8,2.50504025]
[1769975428666,2.68245303,2321.3,2319.8,2.50504025]
[1769975429474,0.00397979,2321.3,2319.8,2.50504025]
[1769975430378,0.21566,2320.7,2319.8,2.50504025]
[1769975432377,40.16473841,2321.3,2319.8,2.50504025]
[1769975432578,37.48228538,2321.2,2319.8,2.50504025]
[1769975432777,0.21566,2320.6,2319.3,2.50504025]
[1769975435378,37.48228538,2321.2,2319.5,2.50504025]
[1769975435583,0.21561,2321.2,2319.5,2.50504025]
[1769975435985,0.21562,2321.1,2319.5,2.50504025]
[1769975436682,0.21565,2320.8,2319.5,2.50504025]
[1769975436883,40.16075862,2321.1,2319.5,2.50504025]
[1769975437085,37.48228538,2321.0,2319.5,2.50504025]
[1769975437385,0.21568,2320.5,2319.5,2.50504025]
[1769975440390,4.98727105,2321.9,2320.4,2.67353101]
[1769975440585,2.50148222,2322.5,2320.5,0.21567]
[1769975440789,2.50148222,2322.5,2320.7,2.54132217]
[1769975440991,2.50148222,2322.5,2321.2,2.54132217]
[1769975441187,2.50148222,2322.3,2320.9,6.74888906]
[1769975441392,2.71040734,2322.2,2320.9,0.00429413]
[1769975441590,2.49488734,2322.0,2320.9,0.00429413]
[1769975441984,2.49488734,2322.0,2320.9,2.5456163]
[1769975442289,2.49488734,2322.0,2320.9,6.75318319]
[1769975442688,12.0,2321.9,2320.9,6.75318319]
[1769975443588,2.50148223,2321.8,2320.9,0.00429413]
[1769975443892,2.50148223,2320.8,2320.1,3.882]
[1769975444387,15.43028223,2320.2,2319.3,2.54132217]
[1769975444588,2.50148223,2320.2,2319.3,2.54132217]
[1769975444887,2.00471429,2320.2,2319.3,0.00426026]
[1769975445088,0.00323206,2320.2,2319.3,0.00426026]
[1769975445290,0.00323206,2320.2,2319.3,2.54558243]
[1769975445791,0.00323206,2320.2,2319.3,3.02334028]
[1769975446292,0.00323206,2320.2,2319.4,2.54132217]
[1769975446591,0.00323206,2320.2,2319.3,3.02334028]
[1769975446987,2.46570439,2320.1,2319.3,2.54558243]
[1769975447189,12.9288,2320.0,2319.3,0.00426026]
[1769975447385,2.46570439,2320.0,2319.3,0.00426026]
[1769975447584,0.00323206,2320.2,2319.3,0.00426026]
[1769975448088,12.0,2320.1,2319.3,0.00426026]
[1769975448688,2.46570439,2320.0,2319.3,0.00426026]
[1769975448894,12.9288,2319.9,2319.3,0.00426026]
[1769975449288,2.46570439,2320.0,2319.3,0.00426026]
[1769975449289,12.9288,2319.8,2319.3,0.00426026]
[1769975449490,0.00323206,2320.2,2319.3,0.00426026]
[1769975449790,12.0,2320.1,2319.3,0.00426026]
[1769975449990,12.0,2320.1,2319.3,3.26426026]
[1769975452693,2.46893645,2320.2,2319.3,3.26426026]
[1769975452993,24.9288,2320.0,2319.3,3.26426026]
[1769975453493,12.9288,2319.9,2319.3,3.26426026]
[1769975453694,12.9288,2319.8,2319.3,3.26426026]
[1769975453891,2.46570439,2319.8,2319.3,3.26426026]
[1769975454097,2.46570439,2319.7,2319.3,0.00426026]
[1769975454293,12.9288,2319.4,2318.8,2.54132217]
[1769975454496,2.46570439,2319.2,2318.4,2.54132217]
[1769975454693,2.46570439,2318.9,2317.9,6.42332217]
[1769975454895,3.56879,2319.3,2317.6,5.15972184]
[1769975454896,2.46570439,2318.5,2317.6,2.54132217]
[1769975455096,2.46570439,2318.7,2317.4,2.48936303]
[1769975455403,2.47044593,2318.7,2317.6,2.48936303]
[1769975455798,15.39450439,2318.5,2317.6,2.48936303]
[1769975456296,24.9288,2318.4,2317.6,2.48936303]
[1769975456496,12.0,2318.4,2317.6,2.48936303]
[1769975457701,12.0,2318.4,2317.4,0.00325388]
[1769975457702,12.9288,2318.2,2317.4,0.00325388]
[1769975457899,12.9288,2318.3,2317.4,0.00325388]
[1769975458301,12.9288,2318.0,2317.4,0.00325388]
[1769975458601,15.39450439,2318.2,2317.4,0.00325388]
[1769975458796,12.9288,2318.0,2317.4,0.00325388]
[1769975459103,15.39450439,2317.9,2317.4,0.00325388]
[1769975459298,12.0,2317.8,2317.4,0.00325388]
[1769975459498,24.9288,2317.8,2317.4,0.00325388]
[1769975459693,2.46570439,2318.4,2317.4,0.00325388]
[1769975459894,2.50104509,2318.2,2317.4,0.00325388]
[1769975460295,8.84506053,2318.2,2317.4,0.00325388]
[1769975460697,2.50104509,2318.6,2317.5,3.267]
[1769975461005,2.50104509,2318.6,2317.6,0.21594]
[1769975461197,0.00474154,2318.7,2317.6,2.75726217]
[1769975461397,0.00474154,2318.7,2317.7,2.75725217]
[1769975462103,2.50104509,2320.1,2318.0,0.2159]
[1769975462301,2.50104509,2319.4,2318.1,3.884]
[1769975462503,2.50104509,2319.4,2318.2,3.266]
[1769975462698,2.50104509,2318.2,2317.0,6.42532217]
[1769975462902,2.50104509,2318.2,2317.1,3.267]
[1769975463201,2.50104509,2317.7,2317.1,3.267]
[1769975463400,15.41514637,2318.0,2317.1,3.267]
[1769975463603,2.48634637,2317.9,2317.1,3.267]
[1769975463798,2.48634637,2317.5,2317.1,3.267]
[1769975464201,15.41514637,2317.5,2317.1,3.267]
[1769975465003,15.41514637,2317.5,2317.1,3.27071028]
[1769975465205,12.9288,2317.4,2317.1,3.27071028]
[1769975465407,2.48634637,2317.5,2317.1,3.27071028]
[1769975465604,0.00442305,2318.2,2317.1,3.27071028]
[1769975465807,2.49378719,2317.8,2317.1,0.00371028]
[1769975466100,2.49378719,2317.6,2317.1,0.00371028]
[1769975466506,2.49378719,2317.3,2317.1,0.00371028]
[1769975466703,2.49378719,2317.3,2317.0,3.884]
[1769975467102,12.9288,2317.2,2317.0,3.884]
[1769975467308,12.9288,2317.2,2317.0,2.93723422]
[1769975467604,2.32345546,2317.0,2316.2,3.885]
[1769975467801,2.32345546,2316.9,2316.2,3.885]
[1769975468006,2.50289012,2318.8,2317.6,0.21593]
[1769975468203,2.50289012,2318.8,2317.7,7.155]
[1769975468409,2.50289012,2318.3,2317.7,7.155]
[1769975468602,2.50289012,2318.3,2317.7,3.885]
[1769975468908,15.43169012,2317.8,2317.7,3.885]
[1769975469209,14.47863034,2317.8,2317.7,2.87827188]
[1769975469604,2.531,2319.3,2317.7,2.87827188]
[1769975469805,3.82868753,2319.2,2317.7,2.87827188]
[1769975470708,3.83243637,2319.2,2317.7,2.87827188]
[1769975471001,3.61664637,2319.2,2317.7,2.87827188]
[1769975471206,2.32345546,2319.1,2317.7,2.87827188]
[1769975471608,2.32345546,2318.9,2317.7,2.87827188]
[1769975473211,0.00374884,2319.2,2318.0,1.01145972]
[1769975473407,2.32345546,2319.6,2318.3,1.24179757]
[1769975473611,3.61289753,2319.5,2318.3,1.24179757]
[1769975474109,2.32345546,2319.6,2318.3,1.24179757]
[1769975474309,2.32345546,2319.4,2318.3,1.24179757]
[1769975474509,2.32345546,2319.4,2318.1,5.81575926]
[1769975474812,2.32345546,2319.2,2318.2,7.153]
[1769975475007,2.32345546,2319.2,2318.2,8.17892757]
[1769975475211,5.93635299,2319.5,2318.2,8.17892757]
[1769975476106,2.32345546,2319.4,2318.2,7.153]
[1769975476516,3.61289753,2319.3,2318.2,7.153]
[1769975476912,0.00474952,2319.6,2318.3,1.0229791]
[1769975477210,3.61764705,2319.6,2318.6,1.0229791]
[1769975478606,6.31296452,2321.4,2318.6,1.0229791]
[1769975478607,2.50289013,2321.0,2318.9,0.21582]
[1769975478805,2.50289013,2320.8,2319.0,3.271]
[1769975479206,2.50289013,2320.6,2318.8,2.54775926]
[1769975479412,2.71859013,2320.2,2318.2,6.43175926]
[1769975479609,2.72285394,2320.2,2318.3,2.894]
[1769975479805,2.50289013,2319.8,2317.9,3.884]
[1769975480006,2.71863013,2319.8,2318.1,3.084]
[1769975481307,2.50289013,2319.6,2318.1,3.084]
[1769975481810,2.71865013,2319.6,2318.1,3.084]
[1769975483310,2.50289013,2319.3,2317.7,2.55323352]
[1769975483506,2.50289013,2319.3,2317.7,0.00547426]
[1769975484407,2.50289013,2319.0,2317.7,0.00547426]
[1769975485213,2.50289013,2319.9,2317.9,2.54775926]
[1769975485411,2.50715394,2320.2,2318.9,2.54775926]
[1769975485611,2.50715394,2320.2,2319.0,9.50955926]
[1769975486113,2.50289013,2320.5,2319.0,9.50955926]
[1769975486411,2.50289013,2320.5,2319.0,6.9618]
[1769975487112,2.50609376,2320.5,2319.0,9.50955926]
[1769975489113,2.50609376,2320.5,2319.0,6.9618]
[1769975490710,2.72177376,2320.5,2319.0,6.746]
[1769975490908,2.50609376,2320.5,2319.0,6.746]
[1769975492810,2.71858013,2320.3,2319.0,3.884]
[1769975493211,2.50289013,2319.9,2319.0,3.884]
[1769975493414,0.00320363,2320.5,2319.0,3.884]
[1769975494317,0.00320363,2320.5,2318.5,2.54775926]
[1769975494516,0.21572,2320.0,2318.3,0.9271682]
[1769975495420,2.32345546,2319.9,2318.4,1.01853131]
[1769975496420,2.32345546,2319.9,2318.4,3.56629057]
[1769975497518,2.32345546,2319.9,2318.5,1.02342644]
[1769975497714,2.32345546,2319.9,2318.6,1.02342644]
[1769975499118,2.32345546,2319.9,2318.6,3.5711857]
[1769975500416,2.32345546,2319.9,2318.7,1.0292959]
[1769975500619,2.32345546,2319.9,2318.8,1.0292959]
[1769975500821,2.32345546,2319.9,2318.9,3.282]
[1769975501120,2.32345546,2319.9,2319.0,3.282]
[1769975506422,2.32345546,2319.9,2318.4,3.284]
[1769975507024,2.32345546,2319.9,2318.5,1.03599514]
[1769975507926,2.4212836,2319.7,2318.1,6.43075926]
[1769975508725,2.4212836,2319.7,2318.1,3.883]
[1769975509620,3.883,2320.4,2318.1,3.883]
[1769975509621,9.27367584,2320.5,2319.0,1.97729205]
[1769975509826,0.00320363,2320.5,2319.1,5.26529205]
[1769975511329,0.21569,2320.3,2319.1,3.288]
[1769975511531,0.2157,2320.2,2318.8,1.97729205]
[1769975511730,2.4212836,2320.1,2318.6,5.83875926]
[1769975512133,2.4212836,2320.1,2318.7,1.97846193]
[1769975513128,2.4212836,2320.1,2318.8,1.97846193]
[1769975515329,2.4212836,2320.1,2318.9,4.14247212]
[1769975517834,2.4212836,2320.1,2319.1,2.00281947]
[1769975518035,2.4212836,2320.1,2319.2,5.30781947]
[1769975518729,2.4212836,2320.1,2319.2,3.305]
[1769975521828,2.4212836,2320.1,2319.2,5.27480165]
[1769975523639,2.4212836,2320.4,2319.3,1.98011094]
[1769975524039,0.00320363,2320.5,2319.5,1.98011094]
[1769975524337,0.00320363,2320.5,2319.5,1.9839799]
[1769975525035,0.00320363,2320.5,2318.4,5.8056188]
[1769975525036,2.4212836,2319.6,2318.4,5.8056188]
[1769975525231,2.4212836,2319.6,2318.5,4.15702459]
[1769975525431,2.4212836,2319.6,2318.2,3.311]
[1769975525834,2.4212836,2319.6,2318.2,3.31614103]
[1769975526232,0.21579,2319.2,2318.2,3.31614103]
[1769975526435,2.4212836,2319.1,2318.2,3.31614103]
[1769975526832,2.4212836,2319.1,2318.3,2.47431651]
[1769975527037,2.4212836,2319.6,2318.3,2.47431651]
[1769975530838,2.34529425,2320.0,2318.3,2.47431651]
[1769975531044,0.00320363,2320.5,2318.9,2.35647016]
[1769975531240,0.00320363,2320.5,2319.1,2.35647016]
[1769975532249,0.00320363,2320.5,2319.2,2.35647016]
[1769975533151,2.34849788,2320.5,2319.2,2.35647016]
[1769975535851,0.21559,2321.4,2319.7,2.35647016]
[1769975536147,0.21553,2322.0,2320.3,2.35647016]
[1769975536355,6.52844452,2322.6,2320.5,2.35647016]
[1769975536651,0.21548,2322.6,2320.7,2.35647016]
[1769975536847,0.21548,2322.5,2320.7,2.36147105]
[1769975537247,0.00386821,2322.6,2320.9,2.57210016]
[1769975537647,0.00386821,2322.6,2320.9,2.35647016]
[1769975537949,2.56082425,2322.0,2320.7,0.00500089]
[1769975538153,2.56082425,2322.0,2320.7,2.36147105]
[1769975539945,2.56086425,2321.6,2320.7,0.00500089]
[1769975540254,2.34529425,2321.3,2320.4,3.883]
[1769975542554,2.34529425,2321.3,2320.4,3.88657248]
[1769975542755,2.34529425,2321.3,2320.4,6.24304264]
[1769975542956,2.34529425,2321.9,2320.5,2.35647016]
[1769975545057,2.56086425,2321.7,2320.5,2.35647016]
[1769975545256,2.56086425,2321.7,2320.4,3.88657248]
[1769975545455,2.34529425,2321.5,2320.4,3.88657248]
[1769975546057,2.34529425,2321.3,2320.4,3.88657248]
[1769975546453,0.21565,2320.8,2319.2,2.35647016]
[1769975546757,2.34529425,2320.7,2319.2,2.35647016]
[1769975547350,2.34529425,2320.7,2319.2,2.36022316]
[1769975547559,2.34975426,2320.7,2319.2,2.36022316]
[1769975548055,0.00446001,2320.7,2319.4,2.6774088]
[1769975548256,0.00446001,2320.7,2319.5,2.35647016]
[1769975551260,0.00446001,2320.7,2319.5,2.57223016]
[1769975551962,2.34529425,2321.3,2319.7,0.21574]
[1769975552160,2.56087425,2321.5,2319.9,2.35647016]
[1769975552461,2.56087425,2321.5,2320.0,2.35647016]
[1769975553166,2.56571902,2321.5,2320.0,2.35647016]
[1769975553458,2.35013902,2321.5,2320.0,2.35647016]
[1769975554157,0.00484477,2321.5,2320.0,2.57219016]
[1769975554959,2.34529425,2322.4,2320.6,2.57213016]
[1769975555958,2.34852556,2322.4,2320.6,2.57213016]
[1769975556565,2.34852556,2322.4,2320.8,2.35647016]
[1769975556759,2.34852556,2322.4,2321.0,2.35647016]
[1769975556959,2.34852556,2322.4,2321.0,2.3615431]
[1769975562764,2.34852556,2322.4,2321.0,2.36511029]
[1769975563455,0.00323131,2322.4,2321.0,2.36511029]
[1769975563659,0.00323131,2322.4,2321.0,2.58073029]
[1769975568564,2.33489424,2322.4,2321.0,2.58073029]
[1769975568765,0.00323131,2322.4,2321.0,2.58073029]
[1769975570365,2.33489424,2322.4,2321.0,2.58073029]
[1769975571464,0.00323131,2322.4,2321.2,2.35836642]
[1769975571968,0.00323131,2322.4,2321.4,2.35836642]
[1769975572164,2.33489424,2322.4,2321.4,2.35836642]
[1769975573668,0.00323131,2322.4,2321.4,2.35836642]
[1769975575270,2.33166293,2322.8,2321.4,2.35836642]
[1769975576274,2.33596846,2322.8,2321.4,2.35836642]
[1769975578367,2.33166293,2323.7,2321.8,2.35836642]
[1769975578670,2.33166293,2323.5,2322.0,2.35836642]
[1769975579577,2.33662661,2323.5,2322.0,2.35836642]
[1769975583475,2.33662661,2323.5,2321.9,7.198]
[1769975583476,2.33166293,2323.2,2321.9,7.198]
[1769975585176,2.33166293,2323.0,2321.9,7.198]
[1769975587275,2.33166293,2323.0,2322.0,2.35836642]
[1769975588276,2.35303657,2322.7,2321.9,3.879]
[1769975588475,2.56850657,2322.7,2321.9,3.879]
[1769975589071,2.56850657,2322.7,2321.4,2.33143778]
[1769975590374,2.56850657,2322.7,2321.0,7.70571184]
[1769975590375,2.35303657,2322.3,2321.0,2.33651072]
[1769975590570,2.35303657,2322.4,2321.0,2.33651072]
[1769975590780,0.21548,2322.6,2321.2,2.33143778]
[1769975590977,2.56851657,2322.6,2321.2,2.33143778]
[1769975591282,2.35303657,2321.9,2321.0,0.00507294]
[1769975591478,2.35303657,2321.9,2321.0,1e-08]
[1769975592182,2.35303657,2321.6,2321.0,1e-08]
[1769975592380,2.57411562,2321.6,2321.0,1e-08]
[1769975592572,2.35303657,2321.4,2320.3,2.33143778]
[1769975592977,2.56862657,2321.4,2320.2,3.325]
[1769975593181,2.56862657,2321.4,2320.1,3.879]
[1769975593480,2.56862657,2321.4,2320.1,3.88241687]
[1769975593677,2.35303657,2321.1,2320.1,3.88241687]
[1769975593982,2.56865657,2321.1,2320.1,6.21385465]
[1769975594377,2.35303657,2321.1,2320.2,2.33143778]
[1769975594582,2.35303657,2321.5,2320.2,2.33143778]
[1769975597581,0.00549905,2321.6,2320.2,2.33143778]
[1769975597782,0.00549905,2321.6,2320.4,2.33143778]
[1769975599289,0.00549905,2321.6,2320.4,2.54711778]
[1769975599490,2.35303657,2322.0,2320.4,2.54711778]
[1769975600584,2.35754634,2322.0,2320.4,2.54711778]
[1769975600789,2.35303657,2321.8,2320.4,2.33143778]
[1769975601491,2.56858657,2321.8,2320.4,2.33143778]
[1769975605288,0.00450977,2322.0,2320.4,2.33143778]
[1769975605488,0.00450977,2322.0,2320.4,2.54711778]
[1769975605888,2.35754634,2322.0,2320.4,2.54711778]
[1769975607089,0.00450977,2322.0,2320.4,2.54711778]
[1769975607289,0.00450977,2322.0,2320.6,2.33143778]
[1769975609794,2.35754634,2322.0,2320.6,2.33143778]
[1769975609990,2.57308634,2322.0,2320.6,2.33143778]
[1769975610194,2.35303657,2321.8,2320.6,2.33143778]